fUST/lending_fUST_20250613
["ID","MTS","AMOUNT","RATE_DAILY","PERIOD"]
[365551140,1749779244032,-460.0,0.00022819,4]
[365551141,1749779244056,-460.0,0.00022819,4]
[365551142,1749779244078,-491.73,0.0002282,4]
[365551143,1749779244101,-460.0,0.00022821,2]
[365551144,1749779244122,-279.6136614,0.0002285,2]
[365551145,1749779244142,-2085.36257229,0.00022973,2]
[365551146,1749779244165,-460.0,0.00022978,4]
[365551147,1749779244186,-572.1524204,0.00022994,2]
[365551148,1749779244210,-157.53409979,0.00023026,2]
[365551149,1749779244233,-155.0,0.00023031,2]
[365551150,1749779244256,-648.67501231,0.00023031,2]
[365551151,1749779244287,-323.40874103,0.00023038,8]
[365551152,1749779244308,-420.0,0.00023091,2]
[365551153,1749779244330,-300.0,0.00023092,2]
[365551154,1749779244354,-453.27194438,0.00023093,4]
[365551155,1749779244379,-460.0,0.00023093,4]
[365551156,1749779244403,-150.50982772,0.00023093,4]
[365551157,1749779244426,-460.0,0.00023093,4]
[365551158,1749779244452,-460.0,0.00023093,4]
[365551159,1749779244474,-460.0,0.00023094,4]
[365551160,1749779244496,-208.795,0.00023094,2]
[365551161,1749779244524,-491.73,0.00023094,4]
[365551162,1749779244547,-460.0,0.00023095,2]
[365551163,1749779244570,-2598.00760841,0.00023101,2]
[365551164,1749779244593,-11862.37599647,0.00023122,10]
[365551165,1749779244615,-176.18059038,0.00023126,2]
[365551166,1749779244646,-323.40874103,0.00023141,8]
[365551167,1749779244668,-1000.0,0.00023146,3]
[365551168,1749779244690,-4208.62,0.00023159,2]
[365551169,1749779244713,-500.70202936,0.00023184,2]
[365551170,1749779244735,-2343.39,0.00023189,3]
[365551171,1749779244758,-1213.0,0.000232,2]
[365551172,1749779244781,-224.14810172,0.00023213,2]
[365551173,1749779244803,-2085.36257229,0.00023216,2]
[365551174,1749779244829,-3000.0,0.00023226,3]
[365551175,1749779244852,-3000.0,0.00023241,3]
[365551176,1749779244876,-213.20212768,0.00023241,3]
[365551177,1749779244898,-229.7508257,0.00023241,3]
[365551178,1749779244929,-323.40874103,0.00023245,8]
[365551179,1749779244960,-460.0,0.00023252,4]
[365551180,1749779244982,-165.79103727,0.0002326,2]
[365551181,1749779245003,-2000.0,0.00023262,3]
[365551182,1749779245024,-424.26423502,0.00023262,3]
[365551183,1749779245045,-844.79171733,0.00023262,3]
[365551184,1749779245067,-160.0,0.00023262,3]
[365551185,1749779245088,-835.15920933,0.00023262,3]
[365551186,1749779245108,-160.0,0.00023262,3]
[365551187,1749779245129,-151.35033182,0.00023269,2]
[365551188,1749779245149,-5000.0,0.00023269,2]
[365551189,1749779245170,-253.49,0.00023271,3]
[365551190,1749779245190,-465.12925754,0.00023273,4]
[365551191,1749779245215,-157.53409978,0.00023283,2]
[365551192,1749779245237,-224.14810173,0.00023303,2]
[365551193,1749779245260,-253.49,0.00023312,3]
[365551194,1749779245281,-4000.0,0.00023322,3]
[365551195,1749779245311,-323.40874103,0.00023348,9]
[365551196,1749779245332,-506.98,0.00023363,3]
[365551197,1749779245355,-460.0,0.00023367,4]
[365551198,1749779245380,-460.0,0.00023367,4]
[365551199,1749779245404,-460.0,0.00023367,4]
[365551200,1749779245424,-1660.60974193,0.00023368,3]
[365551201,1749779245446,-460.0,0.00023368,4]
[365551202,1749779245470,-160.0,0.00023368,2]
[365551203,1749779245494,-491.73,0.00023368,4]
[365551204,1749779245517,-500.0,0.00023368,2]
[365551205,1749779245539,-515.70067957,0.00023368,2]
[365551206,1749779245560,-500.0,0.00023368,2]
[365551207,1749779245581,-501.81380924,0.00023368,2]
[365551208,1749779245602,-500.0,0.00023368,2]
[365551209,1749779245727,-279.45877911,0.00023368,2]
[365551210,1749779245748,-423.32386519,0.00023368,2]
[365551211,1749779245769,-626.86856571,0.00023368,2]
[365551212,1749779245791,-500.0,0.00023368,2]
[365551213,1749779245811,-500.0,0.00023368,2]
[365551214,1749779245839,-500.0,0.00023368,2]
[365551215,1749779245859,-165.14822669,0.00023368,2]
[365551216,1749779245880,-500.0,0.00023368,2]
[365551217,1749779245901,-500.0,0.00023368,2]
[365551218,1749779245927,-500.0,0.00023368,2]
[365551219,1749779245948,-472.2312722,0.00023368,2]
[365551220,1749779245972,-500.0,0.00023368,2]
[365551221,1749779245993,-500.0,0.00023368,2]
[365551222,1749779246014,-500.0,0.00023368,2]
[365551223,1749779246034,-583.1016615,0.00023368,2]
[365551224,1749779246055,-500.0,0.00023368,2]
[365551225,1749779246077,-500.0,0.00023368,2]
[365551226,1749779246097,-460.0,0.00023369,2]
[365551227,1749779246115,-378.65143977,0.00023395,2]
[365551228,1749779246134,-462.021599,0.00023395,2]
[365551229,1749779246153,-176.18059037,0.00023413,2]
[365551230,1749779246173,-2246.7,0.00023448,10]
[365551231,1749779246203,-323.40874103,0.00023452,9]
[365551232,1749779246223,-601.57766368,0.00023452,2]
[365551233,1749779246242,-2085.36257229,0.00023458,2]
[365551234,1749779246262,-151.0,0.000235,5]
[365551235,1749779246282,-1013.97,0.00023516,3]
[365551236,1749779246303,-782.605025,0.0002352,3]
[365551237,1749779246326,-460.0,0.00023526,4]
[365551238,1749779246350,-157.53409978,0.00023541,2]
[365551239,1749779246370,-160.0,0.00023552,3]
[365551240,1749779246398,-323.40874103,0.00023555,9]
[365551241,1749779246418,-1500.0,0.00023579,2]
[365551242,1749779246438,-151.0,0.000236,6]
[365551243,1749779246460,-151.0,0.000236,6]
[365551244,1749779246481,-471.88990368,0.00023641,4]
[365551245,1749779246503,-460.0,0.00023641,4]
[365551246,1749779246526,-460.0,0.00023641,4]
[365551247,1749779246546,-460.0,0.00023642,4]
[365551248,1749779246567,-491.73,0.00023642,4]
[365551249,1749779246588,-460.0,0.00023643,2]
[365551250,1749779246615,-323.40874103,0.00023659,9]
[365551251,1749779246636,-168.0,0.00023668,2]
[365551252,1749779246655,-167.90682912,0.000237,2]
[365551253,1749779246674,-151.0,0.000237,10]
[365551254,1749779246695,-151.0,0.000237,5]
[365551255,1749779246716,-4724.20807671,0.000237,2]
[365551268,1749779430447,298.102717,0.00013699,2]
[365551282,1749779432182,-298.102717,0.00020187,2]
[365551283,1749779432192,-2038.96,0.00021234,2]
[365551284,1749779432201,-386.38088284,0.00021268,2]
[365551285,1749779432210,-300.0,0.00021729,2]
[365551286,1749779432219,-809.167946,0.00021729,2]
[365551287,1749779432230,-366.52949069,0.00021729,2]
[365551288,1749779432306,-24.30256331,0.00021729,2]
[365551289,1749779432315,-16844.6263668,0.0002173,2]
[365551290,1749779432325,-460.0,0.00022185,4]
[365551291,1749779432334,-460.0,0.0002243,4]
[365551292,1749779432344,-229.7508257,0.00022437,2]
[365551293,1749779432353,-160.0,0.00022437,2]
[365551294,1749779432362,-835.15920933,0.00022437,2]
[365551295,1749779432374,-424.26423502,0.00022437,2]
[365551296,1749779432383,-460.0,0.00022459,4]
[365551297,1749779432392,-460.0,0.00022704,4]
[365551298,1749779432401,-326.62345026,0.00022733,4]
[365551299,1749779432410,-242.0,0.00022958,2]
[365551300,1749779432420,-460.0,0.00022978,4]
[365551301,1749779432429,-242.0,0.00023062,2]
[365551302,1749779432438,-315.26489192,0.00023122,10]
[365551303,1749779432447,-535.28633798,0.00023122,10]
[365551304,1749779432456,-4077.91,0.00023165,2]
[365551305,1749779432465,-242.0,0.00023205,2]
[365551306,1749779432475,-460.0,0.00023252,4]
[365551307,1749779432484,-424.26423502,0.00023262,3]
[365551308,1749779432493,-670.804307,0.0002352,3]
[365551309,1749779432502,-460.0,0.00023526,4]
[365551310,1749779432511,-159.81328065,0.000236,2]
[365551311,1749779432520,-420.0,0.00023619,2]
[365551312,1749779432530,-2085.36257229,0.000237,2]
[365551313,1749779432540,-252.01839076,0.000237,3]
[365551314,1749779432549,-9975.15969862,0.000237,2]
[365551315,1749779432559,-213.20212768,0.00023732,2]
[365551317,1749779432568,-160.0,0.00023732,2]
[365551319,1749779432578,-160.0,0.00023741,2]
[365551321,1749779432587,-160.0,0.00023741,2]
[365551323,1749779432596,-303.12447933,0.00023773,2]
[365551324,1749779432605,-500.0,0.00023773,2]
[365551327,1749779432615,-500.0,0.00023773,2]
[365551328,1749779432628,-500.0,0.00023773,2]
[365551331,1749779432638,-500.0,0.00023773,2]
[365551333,1749779432647,-500.0,0.00023773,2]
[365551334,1749779432657,-500.0,0.00023773,2]
[365551336,1749779432666,-501.19540955,0.00023773,2]
[365551337,1749779432676,-500.607487,0.00023773,2]
[365551338,1749779432685,-500.78017699,0.00023773,2]
[365551339,1749779432695,-500.0,0.00023773,2]
[365551341,1749779432704,-207.4,0.00023774,2]
[365551343,1749779432713,-3847.16,0.00023778,10]
[365551345,1749779432723,-5000.0,0.00023786,2]
[365551347,1749779432732,-500.0,0.00023786,2]
[365551349,1749779432741,-500.0,0.00023786,2]
[365551351,1749779432751,-500.0,0.00023786,2]
[365551353,1749779432760,-500.0,0.00023786,2]
[365551355,1749779432770,-500.0,0.00023786,2]
[365551356,1749779432779,-500.0,0.00023786,2]
[365551357,1749779432789,-500.0,0.00023786,2]
[365551358,1749779432798,-500.0,0.00023786,2]
[365551359,1749779432809,-500.0,0.00023786,2]
[365551360,1749779432818,-500.0,0.00023786,2]
[365551362,1749779432828,-500.0,0.00023786,2]
[365551364,1749779432837,-500.0,0.00023786,2]
[365551366,1749779432846,-500.0,0.00023786,2]
[365551368,1749779432856,-500.0,0.00023786,2]
[365551370,1749779432865,-500.0,0.00023786,2]
[365551372,1749779432881,-500.0,0.00023786,2]
[365551374,1749779432891,-500.0,0.00023786,2]
[365551376,1749779432901,-500.0,0.00023786,2]
[365551377,1749779432912,-500.0,0.00023786,2]
[365551379,1749779432922,-500.0,0.00023786,2]
[365551380,1749779432931,-500.0,0.00023786,2]
[365551382,1749779432940,-500.0,0.00023786,2]
[365551384,1749779432950,-500.0,0.00023786,2]
[365551385,1749779432964,-500.0,0.00023786,2]
[365551387,1749779432974,-500.0,0.00023786,2]
[365551389,1749779432983,-500.0,0.00023786,2]
[365551391,1749779432993,-500.0,0.00023786,2]
[365551393,1749779433002,-500.0,0.00023786,2]
[365551395,1749779433012,-500.0,0.00023786,2]
[365551397,1749779433022,-500.0,0.00023786,2]
[365551399,1749779433031,-911.39808,0.00023787,2]
[365551401,1749779433041,-364.38430879,0.00023787,2]
[365551403,1749779433050,-287.01129572,0.00023787,2]
[365551405,1749779433062,-41723.98941284,0.00023788,2]
[365551407,1749779433072,-654.80973314,0.00023789,3]
[365551409,1749779433081,-316.0,0.00023789,3]
[365551411,1749779433091,-312.01163134,0.00023799,2]
[365551413,1749779433101,-969.82572855,0.00023799,2]
[365551415,1749779433112,-969.82572855,0.00023799,2]
[365551417,1749779433124,-969.82572855,0.00023799,2]
[365551419,1749779433134,-969.82572855,0.00023799,2]
[365551421,1749779433145,-969.82572855,0.00023799,2]
[365551423,1749779433156,-969.82572855,0.00023799,2]
[365551425,1749779433166,-969.82572855,0.00023799,2]
[365551427,1749779433176,-969.82572855,0.00023799,2]
[365551429,1749779433186,-969.82572855,0.00023799,2]
[365551431,1749779433196,-969.82572855,0.00023799,2]
[365551433,1749779433205,-969.82572855,0.00023799,2]
[365551435,1749779433215,-969.82572855,0.00023799,2]
[365551437,1749779433225,-969.82572855,0.00023799,2]
[365551439,1749779433235,-969.82572855,0.00023799,2]
[365551441,1749779433245,-969.82572855,0.00023799,2]
[365551443,1749779433254,-1051.88790558,0.00023799,2]
[365551445,1749779433264,-1051.88790558,0.00023799,2]
[365551447,1749779433274,-1051.88790558,0.00023799,2]
[365551449,1749779433284,-1051.88790558,0.00023799,2]
[365551451,1749779433294,-1051.88790558,0.00023799,2]
[365551453,1749779433303,-1051.88790558,0.00023799,2]
[365551455,1749779433313,-1051.88790558,0.00023799,2]
[365551457,1749779433324,-1051.88790558,0.00023799,2]
[365551473,1749779433334,-1051.88790558,0.00023799,2]
[365551475,1749779433472,-1051.88790558,0.00023799,2]
[365551477,1749779433482,-1051.88790558,0.00023799,2]
[365551479,1749779433492,-1040.29068882,0.00023799,2]
[365551481,1749779433503,-1040.29068882,0.00023799,2]
[365551483,1749779433512,-3733.39309226,0.000238,2]
[365551485,1749779433522,-4203.63493368,0.000238,3]
[365551487,1749779433532,-203849.15157545,0.000238,2]
[365551489,1749779433545,-1676.42321071,0.000238,2]
[365551492,1749779433558,-564.57674422,0.000238,2]
[365551546,1749779437906,-460.0,0.00022003,4]
[365551549,1749779437919,-432.47082374,0.00022277,4]
[365551551,1749779437937,-27.52917626,0.00022277,4]
[365551553,1749779437947,-460.0,0.00022551,4]
[365551555,1749779437959,-460.0,0.00022825,4]
[365551556,1749779437970,-460.0,0.00023099,4]
[365551558,1749779437984,-460.0,0.00023373,4]
[365551559,1749779438001,-460.0,0.00023647,4]
[365551560,1749779438011,-665.81591536,0.00023732,2]
[365551561,1749779438023,-178.97580197,0.00023732,2]
[365551562,1749779438033,-6595.53475665,0.000238,2]
[365551563,1749779438044,-3522.66136956,0.000238,2]
[365551584,1749779439558,-14314.16902114,0.000238,2]
[365551646,1749779440245,-3205.97,0.0002379,10]
[365551649,1749779440267,-17592.60619613,0.000238,2]
[365551771,1749779441741,-25158.25809058,0.000238,2]
[365551807,1749779443160,-3301.7080698,0.000238,2]
[365551808,1749779443172,-14634.16258638,0.000238,2]
[365551809,1749779443183,-19652.10240611,0.000238,3]
[365552043,1749779445861,-460.0,0.00023092,4]
[365552045,1749779445871,-460.0,0.00023366,4]
[365552047,1749779445886,-460.0,0.0002364,4]
[365552049,1749779445896,-7349.34105431,0.000238,3]
[365552362,1749779735132,1572.72862809,0.00024924,60]
[365552365,1749779845129,1382.0,0.00024924,60]
[365552371,1749780003157,5415.37155377,0.00019,2]
[365552372,1749780003180,6411.555,0.00019,2]
[365552373,1749780003204,6411.555,0.00019,2]
[365552374,1749780003227,6411.555,0.00019,2]
[365552375,1749780003250,5515.85971537,0.00019,2]
[365552428,1749780055386,190.98863173,0.0002,2]
[365552433,1749780104636,1046.0,0.0002465,120]
[365552434,1749780136598,3000.00000089,0.00024658,120]
[365552437,1749780177284,2550.0,0.000246,120]
[365552443,1749780301024,184.59492354,0.00019775,2]
[365552444,1749780303098,520.11172936,0.00019,2]
[365552445,1749780303123,6411.555,0.00019,2]
[365552449,1749780355028,4307.33428632,0.00024926,120]
[365552456,1749780434121,-5000.0,0.0001881,6]
[365552457,1749780434144,-2004.04609598,0.00019,2]
[365552458,1749780434166,-2044.68,0.0002023,2]
[365552459,1749780434186,-300.0,0.00020591,2]
[365552460,1749780434207,-300.0,0.00020591,2]
[365552461,1749780434230,-1043.0,0.00020592,2]
[365552462,1749780434251,-500.0,0.00020593,2]
[365552463,1749780434270,-298.02072158,0.00020593,2]
[365552464,1749780434290,-500.0,0.00020593,2]
[365552465,1749780434312,-24900.0,0.00021131,2]
[365552466,1749780434333,-4089.35,0.00021193,2]
[365552467,1749780434355,-300.0,0.00021261,2]
[365552468,1749780434380,-300.0,0.00021261,2]
[365552469,1749780434401,-300.0,0.00021261,2]
[365552470,1749780434421,-1520.0113079,0.00021523,2]
[365552471,1749780434441,-501.8146584,0.00021679,2]
[365552472,1749780434464,-257.58725523,0.000217,2]
[365552473,1749780434494,-378.58536002,0.000219,6]
[365552474,1749780434516,-431.33879008,0.00021997,4]
[365552475,1749780434536,-186.0,0.00022,2]
[365552476,1749780434566,-378.58536,0.00022003,6]
[365552477,1749780434594,-378.58536,0.00022107,6]
[365552478,1749780434617,-6134.03,0.00022156,2]
[365552479,1749780434649,-378.58536,0.0002221,6]
[365552480,1749780434678,-378.58536,0.00022314,7]
[365552481,1749780434701,-420.0,0.00022408,2]
[365552482,1749780434724,-420.0,0.00022408,2]
[365552483,1749780434745,-167.036,0.00022417,2]
[365552484,1749780434779,-378.58536,0.00022417,7]
[365552485,1749780434802,-424.26423502,0.00022502,2]
[365552486,1749780434824,-160.0,0.00022502,2]
[365552487,1749780434845,-213.20212768,0.00022502,2]
[365552488,1749780434866,-844.79171733,0.00022502,2]
[365552489,1749780434900,-378.58536,0.00022521,7]
[365552490,1749780434923,-207.4,0.00022588,2]
[365552491,1749780434953,-378.58536,0.00022624,7]
[365552492,1749780434977,-666.0,0.00022705,2]
[365552493,1749780435007,-378.58536,0.00022728,7]
[365552494,1749780435034,-460.0,0.00022784,4]
[365552495,1749780435059,-460.0,0.00022784,4]
[365552496,1749780435083,-460.0,0.00022784,4]
[365552497,1749780435108,-460.0,0.00022784,4]
[365552498,1749780435130,-500.0,0.00022785,2]
[365552499,1749780435159,-378.58536,0.00022831,8]
[365552500,1749780435188,-378.58536,0.00022934,8]
[365552501,1749780435211,-1667.07,0.00022995,4]
[365552502,1749780435238,-460.0,0.00022995,4]
[365552503,1749780435261,-500.0,0.00022996,2]
[365552504,1749780435283,-500.0,0.00022996,2]
[365552505,1749780435305,-500.0,0.00022996,2]
[365552506,1749780435327,-500.0,0.00022996,2]
[365552507,1749780435351,-500.0,0.00022996,2]
[365552508,1749780435377,-500.0,0.00022996,2]
[365552509,1749780435401,-500.0,0.00022996,2]
[365552510,1749780435424,-500.0,0.00022996,2]
[365552511,1749780435448,-500.0,0.00022996,2]
[365552512,1749780435472,-500.0,0.00022996,2]
[365552513,1749780435630,-500.0,0.00022996,2]
[365552514,1749780435656,-500.0,0.00022996,2]
[365552515,1749780435679,-500.0,0.00022996,2]
[365552516,1749780435701,-500.0,0.00022996,2]
[365552517,1749780435723,-500.0,0.00022996,2]
[365552518,1749780435745,-447.76122943,0.00022996,2]
[365552519,1749780435768,-500.0,0.00022996,2]
[365552520,1749780435789,-358.20226359,0.00022996,2]
[365552521,1749780435813,-460.0,0.00022999,4]
[365552522,1749780435835,-3000.0,0.00023,2]
[365552523,1749780435859,-460.0,0.00023009,4]
[365552524,1749780435886,-3000.0,0.0002301,2]
[365552525,1749780435909,-3000.0,0.0002302,2]
[365552526,1749780435930,-3000.0,0.0002303,2]
[365552527,1749780435962,-378.58536,0.00023038,8]
[365552528,1749780435986,-3000.0,0.0002304,2]
[365552529,1749780436008,-3000.0,0.0002305,2]
[365552530,1749780436032,-460.0,0.00023058,4]
[365552531,1749780436056,-460.0,0.00023058,4]
[365552532,1749780436082,-460.0,0.00023058,4]
[365552533,1749780436106,-460.0,0.00023058,4]
[365552534,1749780436131,-3000.0,0.0002306,2]
[365552535,1749780436152,-3000.0,0.0002307,2]
[365552536,1749780436174,-3000.0,0.0002308,2]
[365552537,1749780436195,-3000.0,0.0002309,2]
[365552538,1749780436217,-3000.0,0.000231,2]
[365552539,1749780436238,-3000.0,0.0002311,2]
[365552540,1749780436259,-8178.7,0.00023119,2]
[365552541,1749780436281,-3000.0,0.0002312,2]
[365552542,1749780436305,-160.0,0.00023121,2]
[365552543,1749780436326,-241.85705686,0.00023121,4]
[365552544,1749780436347,-490.36798184,0.00023121,4]
[365552545,1749780436370,-460.0,0.00023121,4]
[365552546,1749780436393,-183.0,0.00023121,2]
[365552547,1749780436415,-171.0,0.00023121,2]
[365552548,1749780436436,-460.0,0.00023121,2]
[365552549,1749780436457,-3000.0,0.0002313,2]
[365552550,1749780436478,-3000.0,0.0002314,2]
[365552551,1749780436506,-378.58536,0.00023141,8]
[365552552,1749780436528,-3000.0,0.0002315,2]
[365552553,1749780436550,-3000.0,0.0002316,2]
[365552554,1749780436573,-3000.0,0.0002317,2]
[365552555,1749780436595,-3000.0,0.0002318,2]
[365552556,1749780436616,-3000.0,0.0002319,2]
[365552557,1749780436639,-3000.0,0.000232,2]
[365552558,1749780436660,-3000.0,0.0002321,2]
[365552559,1749780436681,-3000.0,0.0002322,2]
[365552560,1749780436702,-1876.14327262,0.0002323,2]
[365552561,1749780449142,-159.81328062,0.00021093,2]
[365552562,1749780449164,-159.81328062,0.00022026,2]
[365552563,1749780449187,-1597.61,0.00022784,4]
[365552564,1749780449209,-5000.0,0.00022839,6]
[365552565,1749780449235,-460.0,0.00023009,4]
[365552566,1749780449258,-1597.61,0.00023058,4]
[365552567,1749780449279,-2671.64,0.0002307,10]
[365552568,1749780449300,-1123.85672738,0.0002323,2]
[365552569,1749780449322,-1335.6275895,0.0002324,2]
[365552571,1749780491915,344.159622,0.00013699,2]
[365552572,1749780572091,-344.159622,0.00020187,2]
[365552573,1749780572113,-1784.44,0.00020458,2]
[365552574,1749780572132,-160.0,0.00020458,2]
[365552575,1749780572153,-55.17337372,0.0002111,2]
[365552581,1749780602477,2000.0,0.000246,120]
[365552585,1749780632170,-500.0,0.00020593,2]
[365552586,1749780632180,-116.5514631,0.0002111,2]
[365552587,1749780632189,-3568.89,0.00021432,2]
[365552588,1749780632198,-460.0,0.00021999,4]
[365552589,1749780632208,-460.0,0.00022273,4]
[365552590,1749780632217,-3000.14843074,0.00022406,2]
[365552591,1749780632228,-313.73916419,0.00022406,2]
[365552592,1749780632239,-2039.44240507,0.00022406,2]
[365552593,1749780632250,-460.0,0.00022547,4]
[365552594,1749780632259,-460.0,0.00022784,4]
[365552595,1749780632268,-500.0,0.00022785,2]
[365552596,1749780632279,-340.0,0.00022821,4]
[365552597,1749780632289,-1960.90069614,0.00023008,6]
[365552598,1749780632423,-282.60678629,0.00023008,6]
[365552737,1749780638087,-460.0,0.00021999,4]
[365552738,1749780638097,-401.87301188,0.00022273,4]
[365552739,1749780638109,-58.12698812,0.00022273,4]
[365552740,1749780638119,-460.0,0.00022547,4]
[365552741,1749780638129,-340.0,0.00022821,4]
[365552742,1749780638139,-460.0,0.00022999,4]
[365552743,1749780638149,-538.98881054,0.00023008,6]
[365552744,1749780638159,-460.0,0.00023009,4]
[365552745,1749780638168,-73.31122118,0.00023009,4]
[365552746,1749780638181,-386.68877882,0.00023009,4]
[365552747,1749780638190,-460.0,0.00023009,4]
[365552748,1749780638200,-460.0,0.00023058,4]
[365552749,1749780638210,-159.81328062,0.00023183,2]
[365552750,1749780638219,-424.32678023,0.00023235,2]
[365552751,1749780638230,-1664.3724105,0.0002324,2]
[365552752,1749780638240,-3000.0,0.0002325,2]
[365552753,1749780638250,-3000.0,0.0002326,2]
[365552754,1749780638261,-460.0,0.00023269,4]
[365552755,1749780638271,-3000.0,0.0002327,2]
[365552756,1749780638282,-460.0,0.00023273,4]
[365552757,1749780638292,-207.4,0.00023274,2]
[365552758,1749780638302,-1324.17365563,0.0002328,2]
[365552759,1749780638317,-1675.82634437,0.0002328,2]
[365552760,1749780638327,-460.0,0.00023283,4]
[365552761,1749780638337,-460.0,0.00023283,4]
[365552762,1749780638347,-369.54,0.00023283,4]
[365552763,1749780638358,-52.55981988,0.00023283,4]
[365552764,1749780638374,-407.44018012,0.00023283,4]
[365552765,1749780638384,-366.7791466,0.00023288,2]
[365552766,1749780638394,-1193.5933069,0.00023288,2]
[365552767,1749780638404,-176.9126268,0.00023288,2]
[365552768,1749780638413,-309.8421927,0.00023288,2]
[365552769,1749780638423,-153.0,0.00023288,2]
[365552770,1749780638432,-176.9126268,0.00023288,2]
[365552771,1749780638442,-153.0,0.00023288,2]
[365552772,1749780638452,-176.9126268,0.00023288,2]
[365552773,1749780638462,-176.9126268,0.00023288,2]
[365552774,1749780638472,-153.0,0.00023288,2]
[365552775,1749780638482,-176.5203962,0.00023288,2]
[365552776,1749780638492,-153.0,0.00023288,2]
[365552777,1749780638502,-176.953955,0.00023288,2]
[365552778,1749780638512,-307.7994451,0.00023288,2]
[365552779,1749780638521,-153.0,0.00023288,2]
[365552780,1749780638532,-158.8399287,0.00023288,2]
[365552781,1749780638542,-573.6747916,0.00023288,2]
[365552782,1749780638552,-153.0,0.00023288,2]
[365552783,1749780638563,-158.8399287,0.00023288,2]
[365552784,1749780638573,-153.0,0.00023288,2]
[365552785,1749780638582,-176.9539549,0.00023288,2]
[365552786,1749780638593,-573.6747916,0.00023288,2]
[365552787,1749780638605,-158.8399287,0.00023288,2]
[365552788,1749780638615,-176.9539549,0.00023288,2]
[365552789,1749780638624,-573.6747916,0.00023288,2]
[365552790,1749780638634,-158.8399287,0.00023288,2]
[365552791,1749780638643,-153.0,0.00023288,2]
[365552792,1749780638662,-176.9539549,0.00023288,2]
[365552793,1749780638674,-153.0,0.00023288,2]
[365552794,1749780638687,-573.6747916,0.00023288,2]
[365552795,1749780638697,-158.8399287,0.00023288,2]
[365552796,1749780638707,-573.6747916,0.00023288,2]
[365552797,1749780638717,-176.9539549,0.00023288,2]
[365552798,1749780638727,-581.6107686,0.00023288,2]
[365552799,1749780638736,-319.769003,0.00023288,2]
[365552800,1749780638747,-153.0,0.00023288,2]
[365552801,1749780638756,-153.0,0.00023288,2]
[365552802,1749780638766,-176.9539549,0.00023288,2]
[365552803,1749780638778,-176.9539549,0.00023288,2]
[365552804,1749780638787,-573.6747916,0.00023288,2]
[365552805,1749780638796,-81.39967983,0.00023288,2]
[365552806,1749780638810,-77.44024887,0.00023288,2]
[365552807,1749780638820,-303.0105716,0.00023288,2]
[365552851,1749780640449,-270.66422,0.00023288,2]
[365552853,1749780640460,-176.9539549,0.00023288,2]
[365552855,1749780640470,-158.8399287,0.00023288,2]
[365552857,1749780640480,-176.9539549,0.00023288,2]
[365552859,1749780640490,-158.8399287,0.00023288,2]
[365552861,1749780640500,-573.6747916,0.00023288,2]
[365552863,1749780640510,-153.0,0.00023288,2]
[365552865,1749780640519,-158.8399287,0.00023288,2]
[365552867,1749780640530,-176.9539549,0.00023288,2]
[365552869,1749780640540,-573.6747916,0.00023288,2]
[365552871,1749780640550,-153.0,0.00023288,2]
[365552873,1749780640560,-158.8399287,0.00023288,2]
[365552875,1749780640570,-176.9539549,0.00023288,2]
[365552877,1749780640580,-573.6747916,0.00023288,2]
[365552879,1749780640591,-2182.27368835,0.0002329,2]
[365553136,1749780643307,-1761.73,0.00020455,2]
[365553138,1749780643318,-1770.54704972,0.00021,2]
[365553140,1749780643330,-1229.45295028,0.00021,2]
[365553142,1749780643340,-3523.47,0.00021429,2]